Workbook

Sheet Scenarios
J2: Select your State from drop down menu below to use typical values for your state | O2: Questions or Feedback?
J3: Default Rates | O3: Please contact Dan Howett at
J4: U.S. State selected | K4: =VLOOKUP(Selected_State,StatesDataTable,1,) -> Default Rates | O4: Oak Ridge National Lab.
J5: commercial cost of electricity | K5: =VLOOKUP(Selected_State,StatesDataTable,4,)/100 -> 0.1 | L5: /kWh | O5: E-mail: HowettDH@ORNL.gov
J6: commercial cost of natural gas | K6: =VLOOKUP(Selected_State,StatesDataTable,2,)/10 -> 1 | L6: /Therm | O6: Phone: 865-253-0567
J7: cost of steam @85% efficiency | K7: =NaturalGasRate/0.85 -> 1.176470588 | L7: /100 lbs
J8: average ground water temperature | K8: =VLOOKUP(Selected_State,StatesDataTable,5,) -> 40 | L8: oF
J9: Life Cycle Cost Analysis Assumptions
J10: Water Heater Life | K10: =HeaterData!B43 -> 12 | L10: years
J11: Real Discount Rate | K11: =HeaterData!B44 -> 0.03 | L11: %/year
J12: Real Energy Escalation Rate | K12: =HeaterData!B45 -> 0.03 | L12: %/year
J13: Real O&M Escalation Rate | K13: =HeaterData!B46 -> 0.03 | L13: %/year
J14: Select the Building type from drop down menu below
B15: Description | C15: Office | D15: Military Barracks | E15: Nursing Home | F15: Grill / Snack Shop | G15: Restaurant | H15: do not delete | J15: Grill / Snack Shop
H16: =ROW(H16)-ROW($H$15)+1 -> 2
B17: =J17 -> CALCULATION OF REQUIRED HEATER SIZE | H17: =ROW(H17)-ROW($H$15)+1 -> 3 | J17: CALCULATION OF REQUIRED HEATER SIZE
B18: =J18 -> # of persons, meals served, etc. | C18: 1000 | D18: 72 | E18: 100 | F18: 100 | G18: 300 | H18: 4 | J18: # of persons, meals served, etc. | K18: =HLOOKUP($J$15,TestData,H18,) -> 100
B19: =J19 -> Unit of occupancy | C19: Persons | D19: Persons | E19: Patient Beds | F19: Meals per hr | G19: Meals Served | H19: 5 | J19: Unit of occupancy | K19: Meals per hr
B20: Number of Occupied Days per Week | C20: 5 | D20: 7 | E20: 7 | F20: 7 | G20: 7 | H20: 6 | J20: Number of Occupied Days per Week | K20: 7
B21: Maximum GPH per person | C21: 0.4 | D21: =$D$34 -> 23.75 | E21: 4.5 | F21: 0.7 | G21: 1.5 | H21: 7 | J21: Maximum GPH per person | K21: 0.7
B22: Storage Tank Sizing, gallons per occupant | C22: 0.42 | D22: 12.5 | E22: 2 | F22: 4 | G22: 7 | H22: 8 | J22: Storage Tank Sizing, gallons per occupant | K22: 4
B23: Avg gallons per day per occupant, meal served, etc. | C23: 1 | D23: =$D$34 -> 23.75 | E23: 18.4 | F23: 0.7 | G23: 2.4 | H23: 9 | J23: Avg gallons per day per occupant, meal served, etc. | K23: 0.7
B24: Percent occupancy or diversity | C24: 1 | D24: 1 | E24: 1 | F24: 1 | G24: 1 | H24: 10 | J24: Percent occupancy or diversity | K24: 1
B25: Tank cold water entering temperature, F | C25: =VLOOKUP(Selected_State,StatesDataTable,5,) -> 40 | D25: =VLOOKUP(Selected_State,StatesDataTable,5,) -> 40 | E25: =VLOOKUP(Selected_State,StatesDataTable,5,) -> 40 | F25: =VLOOKUP(Selected_State,StatesDataTable,5,) -> 40 | G25: =VLOOKUP(Selected_State,StatesDataTable,5,) -> 40 | H25: 11 | J25: Tank cold water entering temperature, F | K25: 40
B26: Water service temperature (at fixture), F | C26: 105 | D26: 105 | E26: 105 | F26: 140 | G26: 140 | H26: 12 | J26: Water service temperature (at fixture), F | K26: 140
B27: Tank storage temperature, F | C27: 140 | D27: 140 | E27: 140 | F27: 140 | G27: 140 | H27: 13 | J27: Tank storage temperature, F | K27: 140
J28: Temperature rise, F (Ttank-Tcold) | K28: =K27-K25 -> 100
C30: Military Barracks Assumptions | J30: HEATER SIZING RESULTS
C31: occupants/fixture | D31: 2 | J31: ="Peak Demand, GPH @"&K26&" F" -> Peak Demand, GPH @140 F | K31: =K18*K21*K24 -> 70
C32: fixture, gpm | D32: 2.5 | J32: Percent Mixed Water | K32: =(K26-K25)/(K27-K25) -> 1
C33: usage, min/occupant | D33: 9.5 | J33: ="Peak Demand, GPH @"&K27&" F" -> Peak Demand, GPH @140 F | K33: =K31*K32 -> 70
C34: peak flow gal/occ/hr | D34: =D32*D33 -> 23.75 | J34: Tank Storage, gallons | K34: =K22*K18 -> 400
C35: fixture duration, seconds | D35: =D33*D31*60 -> 1140 | J35: Usable Tank Storage, gallons | K35: =Tank_Size__gallons*Pct_Usable_Storage -> 300
D36: w/storage | E36: w/o storage | J36: Recovery GPH | K36: =IF(J15="Military Barracks",D39,Demand-Pct_Usable_Storage*Tank_Size__gallons) -> -230
C37: demand gallons | D37: =$D$32*$D$33*$D$18*(($D$26-$D$25)/($D$27-$D$25)) -> 1111.5 | E37: =$D$32*$D$33*$D$18*(($D$26-$D$25)/($D$27-$D$25)) -> 1111.5
C38: storage gallons | D38: =D22*D18 -> 900 | E38: 0 | J38: Btu/Hr Output | K38: =K31*DensityWater*(K26-K25) -> 58310
C39: recovery GPH | D39: =((D37-Pct_Usable_Storage*D38)/$D$35)*3600 -> 1378.421053 | E39: =((E37-Pct_Usable_Storage*E38)/$D$35)*3600 -> 3510 | J39: kW Output | K39: =K38/BTUperkWh -> 17.08968347
J41: ANNUAL ENERGY USAGE AND COSTS
J43: Gallons per day | K43: =K23*K18 -> 70
J44: Occupied days per year | K44: =ROUND(365*(K20/7),0) -> 365
J45: Gallons per year | K45: =K43*K44 -> 25550
J46: Annual Btu/yr @100% efficiency | K46: =K45*DensityWater*(K26-K25) -> 21283150
K50: Electric | L50: Nat. Gas | M50: Nat. Gas | N50: Nat. Gas | O50: Steam | P50: Electric | Q50: Nat. Gas
K51: Standard | L51: Standard | M51: Condensing | N51: CWH | O51: Indirect HX | P51: Tankless | Q51: Tankless
K52: Tank | L52: Tank | M52: Tank | N52: No Storage | O52: Tank
K54: =K50&" "&K51&" "&K52 -> Electric Standard Tank | L54: =L50&" "&L51&" "&L52 -> Nat. Gas Standard Tank | M54: =M50&" "&M51&" "&M52 -> Nat. Gas Condensing Tank | N54: =N50&" "&N51&" "&N52 -> Nat. Gas CWH No Storage | O54: =O50&" "&O51&" "&O52 -> Steam Indirect HX Tank | P54: =P50&" "&P51 -> Electric Tankless | Q54: =Q50&" "&Q51 -> Nat. Gas Tankless
O55: * | P55: **
J56: Annual Btu/yr @100% efficiency | K56: =$K$46 -> 21283150 | L56: 21283150 | M56: 21283150 | N56: 21283150 | O56: =IF(OR($J$15="Military Barracks",$J$15="Restaurant"), $K$46,"N/A") -> N/A | P56: 21283150 | Q56: 21283150
J57: Thermal Efficiency | K57: =VLOOKUP(K54,WaterHeaterTable,4,) -> 0.98 | L57: 0.85 | M57: 0.95 | N57: 0.95 | O57: 0.85 | P57: 0.99 | Q57: 0.93
J58: Total Fuel Input, Btu/yr. | K58: =(K56/K57) -> 21717500 | L58: =(L56/L57) -> 25039000 | M58: 22403315.79 | N58: 22403315.79 | O58: =IF(OR($J$15="Military Barracks",$J$15="Restaurant"), (O56/O57),"N/A") -> N/A | P58: 21498131.31 | Q58: 22885107.53
J60: Annual Fuel Usage (kWh/yr) | K60: =IF(K50="Electric",K58/BTUperkWh,K58/100000) -> 6365.03517 | L60: 250.39 | M60: 224.0331579 | N60: 224.0331579 | P60: 6300.741885 | Q60: 228.8510753
J61: Energy Rate | K61: =VLOOKUP(K$54,WaterHeaterTable,29,) -> 0.1 | L61: =VLOOKUP(L$54,WaterHeaterTable,29,) -> 1 | M61: 1 | N61: 1 | O61: 1.176470588 | P61: 0.1 | Q61: 1
J62: Annual Energy Cost, $/yr | K62: =K60*K61 -> 636.503517 | L62: 250.39 | M62: 224.0331579 | N62: 224.0331579 | O62: =IF(OR($J$15="Military Barracks",$J$15="Restaurant"), O60*O61,"N/A") -> N/A | P62: 630.0741885 | Q62: 228.8510753
J64: Number of Heaters | K64: =VLOOKUP(K$54,WaterHeaterTable,25,) -> 1 | L64: =VLOOKUP(L$54,WaterHeaterTable,25,) -> 1 | M64: =VLOOKUP(M$54,WaterHeaterTable,25,) -> 1 | N64: =VLOOKUP(N$54,WaterHeaterTable,25,) -> 1 | O64: =IF(OR($J$15="Military Barracks",$J$15="Restaurant"), 1,"N/A") -> N/A | P64: =VLOOKUP(P$54,WaterHeaterTable,25,) -> 1 | Q64: =VLOOKUP(Q$54,WaterHeaterTable,25,) -> 1
J65: Heater Storage gallons | K65: =VLOOKUP(K$54,WaterHeaterTable,27,) -> 119 | L65: 71 | M65: 50 | N65: 50 | O65: =IF(OR($J$15="Military Barracks",$J$15="Restaurant"), 0,"N/A") -> N/A | P65: 0 | Q65: 0
J66: External Usable storage, gallons | K66: =IF(K65>=$K$35,0,$K$35-K65) -> 181 | L66: =IF(L65>=$K$35,0,$K$35-L65) -> 229 | M66: =IF(M65>=$K$35,0,$K$35-M65) -> 250 | N66: =IF(N65>=$K$35,0,$K$35-N65) -> 250 | O66: =IF(OR($J$15="Military Barracks",$J$15="Restaurant"), Tank_Size__gallons,"N/A") -> N/A | P66: 0 | Q66: 0
J68: Water Heater Cost | K68: =VLOOKUP(K$54,WaterHeaterTable,26,) -> 8829 | L68: =VLOOKUP(L$54,WaterHeaterTable,26,) -> 6187.23 | M68: =VLOOKUP(M$54,WaterHeaterTable,26,) -> 3268.3 | N68: =VLOOKUP(N$54,WaterHeaterTable,26,) -> 3268.3 | O68: =IF(OR($J$15="Military Barracks",$J$15="Restaurant"), 0,"N/A") -> N/A | P68: =VLOOKUP(P$54,WaterHeaterTable,26,) -> 729 | Q68: =VLOOKUP(Q$54,WaterHeaterTable,26,) -> 637.75
J69: Additional Storage Cost | K69: =IF(OR($J$15="Military Barracks",$J$15="Restaurant"),HeaterData!$J$20+HeaterData!$K$20*Tank_Size__gallons,0) -> 0 | L69: =IF(OR($J$15="Military Barracks",$J$15="Restaurant"),HeaterData!$J$20+HeaterData!$K$20*L66/Pct_Usable_Storage,0) -> 0 | M69: =IF(OR($J$15="Military Barracks",$J$15="Restaurant"),HeaterData!$J$20+HeaterData!$K$20*M66/Pct_Usable_Storage,0) -> 0 | N69: 0 | O69: =IF(OR($J$15="Military Barracks",$J$15="Restaurant"),HeaterData!$J$20+HeaterData!$K$20*O66/Pct_Usable_Storage,"N/A") -> N/A | P69: 0 | Q69: 0
J70: Installation Cost | K70: =VLOOKUP(K$54,WaterHeaterTable,13,)*K64 -> 800 | L70: =VLOOKUP(L$54,WaterHeaterTable,13,)*L64 -> 1000 | M70: =VLOOKUP(M$54,WaterHeaterTable,13,)*M64 -> 2000 | N70: =VLOOKUP(N$54,WaterHeaterTable,13,)*N64 -> 1000 | O70: =IF(OR($J$15="Military Barracks",$J$15="Restaurant"), VLOOKUP(O$54,WaterHeaterTable,13,),"N/A") -> N/A | P70: =VLOOKUP(P$54,WaterHeaterTable,13,)*P64 -> 800 | Q70: =VLOOKUP(Q$54,WaterHeaterTable,13,)*Q64 -> 1000
J71: Total First Cost | K71: =K68+K69+K70 -> 9629 | L71: 7187.23 | M71: 5268.3 | N71: 4268.3 | O71: =IF(OR($J$15="Military Barracks",$J$15="Restaurant"), O68+O69+O70,"N/A") -> N/A | P71: 1529 | Q71: 1637.75
J73: 1st Year Energy Cost | K73: =K62 -> 636.503517 | L73: 250.39 | M73: 224.0331579 | N73: 224.0331579 | O73: N/A | P73: 630.0741885 | Q73: 228.8510753
J74: Discounted UPV Factor Energy | K74: =Discounted_UPV_Factor_Energy -> 12 | L74: 12 | M74: 12 | N74: 12 | O74: 12 | P74: 12 | Q74: 12
J75: NPV Energy Cost | K75: =K73*K74 -> 7638.042204 | L75: 3004.68 | M75: 2688.397895 | N75: 2688.397895 | P75: 7560.890263 | Q75: 2746.212903
J77: Yearly O&M Cost | K77: =VLOOKUP(K$54,WaterHeaterTable,14,) -> 200 | L77: =VLOOKUP(L$54,WaterHeaterTable,14,)*L64 -> 200 | M77: =VLOOKUP(M$54,WaterHeaterTable,14,)*M64 -> 200 | N77: =VLOOKUP(N$54,WaterHeaterTable,14,)*N64 -> 200 | O77: =IF(OR($J$15="Military Barracks",$J$15="Restaurant"), VLOOKUP(O$54,WaterHeaterTable,14,),"N/A") -> N/A | P77: =VLOOKUP(P$54,WaterHeaterTable,14,) -> 50 | Q77: =VLOOKUP(Q$54,WaterHeaterTable,14,) -> 50
J78: Discounted UPV Factor Non Fuel | K78: =Discounted_UPV_Factor_Non_Fuel -> 12 | L78: 12 | M78: 12 | N78: 12 | O78: 12 | P78: 12 | Q78: 12
J79: NPV O&M Cost | K79: =K77*K78 -> 2400 | L79: 2400 | M79: 2400 | N79: 2400 | P79: 600 | Q79: 600
J81: First Cost | K81: =K68+K70 -> 9629 | L81: =L68+L70 -> 7187.23 | M81: =M71 -> 5268.3 | N81: =N71 -> 4268.3 | O81: =IF(OR($J$15="Military Barracks",$J$15="Restaurant"), O69+O70,"N/A") -> N/A | P81: =P68+P70 -> 1529 | Q81: =Q68+Q70 -> 1637.75
J82: Present Value of Energy Cost | K82: =K75 -> 7638.042204 | L82: =L75 -> 3004.68 | M82: 2688.397895 | N82: 2688.397895 | O82: =IF(OR($J$15="Military Barracks",$J$15="Restaurant"), O75,"N/A") -> N/A | P82: 7560.890263 | Q82: 2746.212903
J83: Present Value of O&M Cost | K83: =K79 -> 2400 | L83: =L79 -> 2400 | M83: 2400 | N83: 2400 | O83: =IF(OR($J$15="Military Barracks",$J$15="Restaurant"), O79,"N/A") -> N/A | P83: 600 | Q83: 600
J84: TOTAL Present Value | K84: =K81+K82+K83 -> 19667.0422 | L84: 12591.91 | M84: 10356.69789 | N84: 9356.697895 | O84: =IF(OR($J$15="Military Barracks",$J$15="Restaurant"), O81+O82+O83, "N/A") -> N/A | P84: 9689.890263 | Q84: 4983.962903
J87: =IF(OR($J$15="Military Barracks",$J$15="Restaurant"), "","* NOTE: Steam Indirect HX Systems are not applicable to Office, Nursing Home or Grill/Snack Shop") -> * NOTE: Steam Indirect HX Systems are not applicable to Office, Nursing Home or Grill/Snack Shop | M87: ** NOTE: When using the electric tankless option, addtitional electrical service will probably need to be installed. This can be an expensive addtiona to the initial cost

Sheet HeaterData (hidden)
B2: Chart Titles
A3: Chart 1 | B3: ="Annual Energy Cost for "&Scenarios!K18&" "&Scenarios!J15&" "&Scenarios!K19 -> Annual Energy Cost for 100 Grill / Snack Shop Meals per hr
A4: Chart 2 | B4: ="Water Heater First Cost for "&Scenarios!K18&" "&Scenarios!J15&" "&Scenarios!K19 -> Water Heater First Cost for 100 Grill / Snack Shop Meals per hr
A5: Chart 3 | B5: ="Present Value of Costs Associated with Water Heating System that Serves "&Scenarios!K18&" "&Scenarios!J15&" "&Scenarios!K19 -> Present Value of Costs Associated with Water Heating System that Serves 100 Grill / Snack Shop Meals per hr
A7: Field1 | B7: Field2 | C7: Field3 | D7: Field4 | E7: Field5 | F7: Field6 | G7: Field7 | H7: Field8 | I7: Field9 | J7: Field10 | K7: Field11 | L7: Field12 | M7: Field13 | N7: Field14 | O7: Field15 | P7: Field16 | Q7: Field17 | R7: Field18 | S7: Field19 | T7: Field20 | U7: Field21 | V7: Field22 | W7: Field23 | X7: Field24 | Y7: Field25 | Z7: Field26 | AA7: Field27 | AB7: Field28 | AC7: Field29 | AD7: Field30 | AE7: Field31 | AF7: Field32 | AG7: Field33 | AH7: Field34 | AI7: Field35
A8: Water Heater Technology | B8: Energy Type | C8: Minimum Size Comment | D8: Thermal Efficiency | E8: Minimum Technology Demand | G8: Cost Comment | H8: Cost Reference | I8: Model Reference | J8: Cost Regression Coefficient for Intercept | K8: Cost Regression Coefficient for Gallons | L8: Cost Regression Coefficient for BTUH | M8: Installation Cost | N8: O&M Cost | O8: Energy Conversion By Fuel Type | Q8: Annual Energy Cost | R8: Chart X Axis | S8: =Q8 -> Annual Energy Cost | T8: =R8 -> Chart X Axis | U8: First Cost | V8: NPV Energy Cost | W8: NPV O&M | Y8: Number of Heaters | Z8: Equpment Cost LookUp | AA8: Total Heater Storage Gallons | AC8: Selected Energy Rates | AD8: Energy Units | AE8: Btu per Unit of Energy | AF8: Field26 | AG8: Field27 | AH8: Field28 | AI8: Field29
A9: Electric Standard Tank | B9: Electric | C9: "This scenario's demand is "&Demand Recovery&" and appears to be a poor fit for this water heater technology" | D9: 0.98 | H9: Lochinvar | I9: Standard Hi-Power Electric Water Heaters | J9: reg. not used | K9: reg. not used | L9: reg. not used | M9: 800 | N9: 200 | O9: =DensityWater/BTUperkWh -> 0.002441383353 | Q9: =Scenarios!K73 -> 636.503517 | R9: =A9 -> Electric Standard Tank | S9: 636.503517 | T9: Electric Standard Tank | U9: =Scenarios!K71 -> 9629 | V9: =S9*Discounted_UPV_Factor_Energy -> 7638.042204 | W9: =Scenarios!K79 -> 2400 | Y9: =SUM(ListCost!R60:R78) -> 1 | Z9: =SUM(ListCost!S60:S78) -> 8829 | AA9: =SUM(ListCost!T60:T78) -> 119 | AC9: =Scenarios!K5 -> 0.1 | AD9: kWh | AE9: =BTUperkWh -> 3412
A10: Nat. Gas Standard Tank | B10: Natural Gas | D10: 0.85 | H10: A. O. Smith | J10: reg. not used | K10: reg. not used | L10: reg. not used | M10: 1000 | N10: 200 | O10: =DensityWater/BTUperTherm -> 8.33e-05 | Q10: =Scenarios!L73 -> 250.39 | R10: Nat. Gas Standard Tank | S10: 250.39 | T10: Nat. Gas Standard Tank | U10: =Scenarios!L71 -> 7187.23 | V10: 3004.68 | W10: =Scenarios!L79 -> 2400 | Y10: =SUM(ListCost!R33:R49) -> 1 | Z10: =SUM(ListCost!S33:S49) -> 6187.23 | AA10: =SUM(ListCost!T33:T49) -> 71 | AC10: =NaturalGasRate -> 1 | AD10: Therms | AE10: =BTUperTherm -> 100000
A11: Nat. Gas Condensing Tank | B11: Natural Gas | D11: 0.95 | H11: A. O. Smith | J11: reg. not used | K11: reg. not used | L11: reg. not used | M11: 2000 | N11: 200 | O11: =DensityWater/BTUperkWh -> 0.002441383353 | Q11: =Scenarios!M73 -> 224.0331579 | R11: Nat. Gas Condensing Tank | S11: 224.0331579 | T11: Nat. Gas Condensing Tank | U11: =Scenarios!M71 -> 5268.3 | V11: 2688.397895 | W11: =Scenarios!M79 -> 2400 | Y11: =SUM(ListCost!R10:R26) -> 1 | Z11: =SUM(ListCost!S10:S26) -> 3268.3 | AA11: =SUM(ListCost!T10:T26) -> 50 | AC11: =NaturalGasRate -> 1 | AD11: Therms | AE11: =BTUperTherm -> 100000
A12: Nat. Gas CWH No Storage | B12: Natural Gas | D12: 0.95 | H12: A. O. Smith | J12: reg. not used | K12: reg. not used | L12: reg. not used | M12: 1000 | N12: 200 | O12: =DensityWater/BTUperkWh -> 0.002441383353 | Q12: =Scenarios!N73 -> 224.0331579 | R12: =A12 -> Nat. Gas CWH No Storage | S12: =Q12 -> 224.0331579 | T12: =R12 -> Nat. Gas CWH No Storage | U12: =Scenarios!N71 -> 4268.3 | V12: =S12*Discounted_UPV_Factor_Energy -> 2688.397895 | W12: =Scenarios!N79 -> 2400 | Y12: =SUM(ListCost!R10:R26) -> 1 | Z12: =SUM(ListCost!S10:S26) -> 3268.3 | AA12: =SUM(ListCost!T10:T26) -> 50 | AC12: =NaturalGasRate -> 1 | AD12: Therms | AE12: =BTUperTherm -> 100000
A13: Steam Indirect HX Tank | B13: Steam | D13: 0.85 | H13: Lochinvar | I13: Glass lined tank + double walled tube bundle | J13: =J21 -> 10468.8874 | K13: =K21 -> 23.62244929 | L13: =L21 -> 0.005639418801 | M13: 2000 | N13: 200 | O13: =DensityWater/BTUperkWh -> 0.002441383353 | Q13: =Scenarios!O73 -> N/A | R13: Steam Indirect HX Tank | S13: N/A | T13: Steam Indirect HX Tank | U13: =Scenarios!O71 -> N/A | V13: =IF(OR($S$13="N/A"), "N/A",S13*Discounted_UPV_Factor_Energy) -> N/A | W13: =Scenarios!O79 ->  | Y13: 1 | Z13: =Scenarios!O69 -> N/A | AA13: =Scenarios!#REF! ->  | AC13: =SteamRate -> 1.176470588 | AD13: 100 lbs | AE13: 100000
A14: Electric Tankless | B14: Electric | D14: 0.99 | H14: Stielbel Eltron 36 Plus Electric 3gpm@82deltaT | I14: Tempra 36 Plus Electric 3gpm@82deltaT | J14: reg. not used | K14: reg. not used | L14: reg. not used | M14: 800 | N14: 50 | O14: =DensityWater/BTUperkWh -> 0.002441383353 | Q14: =Scenarios!P73 -> 630.0741885 | R14: Electric Tankless | S14: 630.0741885 | T14: Electric Tankless | U14: =Scenarios!P71 -> 1529 | V14: 7560.890263 | W14: =Scenarios!P79 -> 600 | Y14: =SUM(ListCost!R86:R99) -> 1 | Z14: =SUM(ListCost!S86:S99) -> 729 | AA14: =SUM(ListCost!T86:T99) -> 0 | AC14: =ElectricRate -> 0.1 | AD14: kWh | AE14: =BTUperkWh -> 3412
A15: Nat. Gas Tankless | B15: Natural Gas | D15: 0.93 | H15: Noritz | I15: CWHeater 199,000 but/hr Model NCC199 SV NG | J15: reg. not used | K15: reg. not used | L15: reg. not used | M15: 1000 | N15: 50 | O15: =DensityWater/BTUperkWh -> 0.002441383353 | Q15: =Scenarios!Q73 -> 228.8510753 | R15: Nat. Gas Tankless | S15: 228.8510753 | T15: Nat. Gas Tankless | U15: =Scenarios!Q71 -> 1637.75 | V15: 2746.212903 | W15: =Scenarios!Q79 -> 600 | Y15: =SUM(ListCost!R107:R118) -> 1 | Z15: =SUM(ListCost!S107:S118) -> 637.75 | AA15: =SUM(ListCost!T107:T118) -> 0 | AC15: =NaturalGasRate -> 1 | AD15: Therms | AE15: =BTUperTherm -> 100000
J17: see note for steam | Y17: steam heater is one unit because it is calculated via a regression
J18: Cost Regression Coefficient for Intercept | K18: Cost Regression Coefficient for Gallons | L18: Cost Regression Coefficient for BTUH
I19: Steam Regression data - tube bundle only | J19: 5338.11077 | L19: 0.005639418801
A20: Water Heater Life | B20: =Scenarios!K10 -> 12 | C20: years | I20: Steam Regression data - tank only | J20: 5130.776626 | K20: 23.62244929
A21: Real Discount Rate | B21: =Scenarios!K11 -> 0.03 | C21: %/year | I21: Total | J21: =J20+J19 -> 10468.8874 | K21: =K20+K19 -> 23.62244929 | L21: =L20+L19 -> 0.005639418801
A22: Real Energy Escalation Rate | B22: =Scenarios!K12 -> 0.03 | C22: %/year
A23: Real OM Escalation Rate | B23: =Scenarios!K13 -> 0.03 | C23: %/year | J23: 4.547473509e-13 | K23: 0.006714685874
A25: Selected State from Scenario Page | B25: =Selected_State -> Default Rates
A26: Electric | B26: =Scenarios!K5 -> 0.1 | C26: $/kWh
A27: Natural Gas | B27: =Scenarios!K6 -> 1 | C27: $/Therm
A28: Steam @85%eff | B28: =NaturalGasRate/0.85 -> 1.176470588 | C28: $/100 lbs
A31: Density Water | B31: 8.33 | C31: lbs/gallon
A33: Btu/kWh | B33: 3412
A34: Btu/Therm | B34: 100000
A35: Btu/100 lbs of 5 psi steam | B35: =960*100 -> 96000
A37: Pct Water Heater Usable Storage | B37: 0.75
A43: Water Heater Life | B43: 12 | C43: years
A44: Real Discount Rate | B44: 0.03 | C44: %/year
A45: Real Energy Escalation Rate | B45: 0.03 | C45: %/year
A46: Real OM Escalation Rate | B46: 0.03 | C46: %/year

Sheet StatesTable (hidden)
A1: Gas prices by State | D1: http://www.eia.gov/cneaf/electricity/esr/esr_sum.html
A2: http://www.eia.gov/dnav/ng/ng_pri_sum_a_EPG0_PCS_DMcf_a.htm | D2: Table 4. Average Retail Price for Bundled and Unbundled
D3: Consumers by Sector, Census Division, and State, 2009
B4: $/cf | C4: $/cf | D4: cents/kWh | E4: Ground water F
A5: Field1 | B5: Field2 | C5: Field3 | D5: Field4 | E5: Field5
A6: State | B6: 2009 | C6: 2010 | D6: 2009
A7: Default Rates | B7: 10 | D7: 10 | E7: 40
A8: U.S. Average | B8: 10.06 | C8: 9.15 | D8: 10.17 | E8: 54
A9: Alabama | B9: 14.93 | C9: 13.39 | D9: 10.05 | E9: 62
A10: Alaska | B10: 9.51 | C10: 8.69 | D10: 14.46 | E10: 34
A11: Arizona | B11: 12.15 | C11: 10.71 | D11: 9.35 | E11: 57
A12: Arkansas | B12: 10.71 | C12: 8.88 | D12: 7.56 | E12: 62
A13: California | B13: 7.75 | C13: NA | D13: 13.42 | E13: 52
A14: Colorado | B14: 7.56 | C14: NA | D14: 8.15 | E14: 42
A15: Connecticut | B15: 9.92 | C15: 9.55 | D15: 16.86 | E15: 50
A16: Delaware | B16: 15.87 | C16: =B16 -> 15.87 | D16: 11.98 | E16: 57
A17: District of Columbia | B17: 12.99 | C17: NA | D17: 12.96 | E17: 55
A18: Florida | B18: 11.09 | C18: 10.59 | D18: 10.77 | E18: 70
A19: Georgia | B19: 11.7 | C19: 10.82 | D19: 8.94 | E19: 62
A20: Hawaii | B20: 30 | C20: 36.74 | D20: 21.86 | E20: 74
A21: Idaho | B21: 9.77 | C21: 8.31 | D21: 6.49 | E21: 47
A22: Illinois | B22: 8.65 | C22: 8.74 | D22: 8.99 | E22: 52
A23: Indiana | B23: 9.18 | C23: 7.44 | D23: 8.32 | E23: 52
A24: Iowa | B24: 7.88 | C24: NA | D24: 7.55 | E24: 47
A25: Kansas | B25: 10.01 | C25: 9.81 | D25: 7.87 | E25: 54
A26: Kentucky | B26: 10.89 | C26: 8.42 | D26: 7.63 | E26: 57
A27: Louisiana | B27: 10.46 | C27: 9.93 | D27: 7.69 | E27: 67
A28: Maine | B28: 13.94 | C28: NA | D28: 12.55 | E28: 39
A29: Maryland | B29: 10.87 | C29: 9.93 | D29: 11.97 | E29: 52
A30: Massachusetts | B30: 12.85 | C30: NA | D30: 15.37 | E30: 45
A31: Michigan | B31: 9.38 | C31: 8.79 | D31: 9.24 | E31: 42
A32: Minnesota | B32: 7.96 | C32: 7.56 | D32: 7.92 | E32: 37
A33: Mississippi | B33: 9.48 | C33: NA | D33: 9.5 | E33: 62
A34: Missouri | B34: 10.8 | C34: NA | D34: 6.96 | E34: 54
A35: Montana | B35: 9.41 | C35: 8.56 | D35: 8.32 | E35: 42
A36: Nebraska | B36: 7.44 | C36: 7.04 | D36: 7.33 | E36: 50
A37: Nevada | B37: 10.92 | C37: 9.74 | D37: 10.64 | E37: 52
A38: New Hampshire | B38: 14.37 | C38: NA | D38: 14.55 | E38: 44
A39: New Jersey | B39: 10.2 | C39: 10.11 | D39: 13.83 | E39: 52
A40: New Mexico | B40: 7.52 | C40: 7.55 | D40: 8.4 | E40: 52
A41: New York | B41: 10.72 | C41: 10.03 | D41: 15.51 | E41: 44
A42: North Carolina | B42: 11.63 | C42: NA | D42: 7.98 | E42: 57
A43: North Dakota | B43: 7.41 | C43: 7.03 | D43: 6.81 | E43: 39
A44: Ohio | B44: 10.41 | C44: 9.23 | D44: 9.65 | E44: 52
A45: Oklahoma | B45: 10.6 | C45: NA | D45: 6.76 | E45: 57
A46: Oregon | B46: 11.86 | C46: 10.3 | D46: 7.49 | E46: 52
A47: Pennsylvania | B47: 11.83 | C47: 10.53 | D47: 9.54 | E47: 49
A48: Rhode Island | B48: 15.14 | C48: NA | D48: 13.67 | E48: 52
A49: South Carolina | B49: 11.16 | C49: 10.33 | D49: 8.74 | E49: 62
A50: South Dakota | B50: 7.42 | C50: 7.16 | D50: 7.14 | E50: 43
A51: Tennessee | B51: 10.67 | C51: 8.96 | D51: 9.61 | E51: 57
A52: Texas | B52: 8.16 | C52: 8.03 | D52: 9.66 | E52: 60
A53: Utah | B53: 7.57 | C53: 6.82 | D53: 6.96 | E53: 52
A54: Vermont | B54: 12.96 | C54: 11.82 | D54: 12.93 | E54: 44
A55: Virginia | B55: 10.31 | C55: NA | D55: 8.06 | E55: 52
A56: Washington | B56: 12.26 | C56: 10.51 | D56: 6.96 | E56: 47
A57: West Virginia | B57: 14.24 | C57: 10.31 | D57: 6.77 | E57: 52
A58: Wisconsin | B58: 8.95 | C58: 8.54 | D58: 9.57 | E58: 41
A59: Wyoming | B59: 8.01 | C59: 6.91 | D59: 7.28 | E59: 42

Sheet ListCost (hidden)
E1: Scenario Data for: | G1: =Scenarios!J15 -> Grill / Snack Shop
A3: Recovery GPH | B3: =Demand -> 70
A7: NATURAL GAS CONDENSING WATER HEATER | P7: Logic for Equipment Cost Determination
A8: Field1 | B8: Field2 | C8: Field3 | D8: Field4 | E8: Field5 | F8: Field6 | G8: Field7 | H8: Field8 | I8: Field9 | J8: Field10 | K8: Field11 | L8: Field12 | M8: Field13 | N8: Field14 | O8: Field15 | P8: Field16 | Q8: Field17 | R8: Field18 | S8: Field19 | T8: Field20
A9: Recovery GPH | B9: Manufacturer | C9: Heater Model | D9: Thermal Efficiency | E9: Tank Size Gallons | F9: Btu/hr Input Each | G9: Number of Units | H9: GPH @100F Rise | I9: ="GPH @"&T_rise_F&"F rise" -> GPH @100F rise | J9: Total Tank Gallons | K9: Total Btu/hr Input | L9: Total Usable Storage Gallons | M9: Budget Price Each | N9: Not Used | O9: Not Used | P9: Demand Ratio | Q9: Field3 | R9: =G9 -> Number of Units | S9: Total Installed Cost | T9: Total Heater Storage Gallons
A10: =H10 -> 41.05642257 | B10: A.O.Smith | C10: BTX-80 | D10: 0.9 | E10: 50 | F10: =76000/2 -> 38000 | G10: 1 | H10: =(G10*F10*D10)/(DensityWater*100) -> 41.05642257 | I10: =(G10*F10*D10)/(DensityWater*T_rise_F) -> 41.05642257 | J10: =E10*G10 -> 50 | K10: =G10*F10 -> 38000 | L10: =E10*G10*Pct_Usable_Storage -> 37.5 | M10: 3268.3 | P10: =A10/Demand -> 0.5865203224 | Q10: =IF(P10>=1,P9<1) -> FALSE | R10: =$G10*Q10 -> 0 | S10: =R10*M10 -> 0 | T10: =R10*E10 -> 0
A11: =H11 -> 82.11284514 | B11: A.O.Smith | C11: BTX-80 | D11: 0.9 | E11: 50 | F11: 76000 | G11: 1 | H11: =(G11*F11*D11)/(DensityWater*100) -> 82.11284514 | I11: =(G11*F11*D11)/(DensityWater*T_rise_F) -> 82.11284514 | J11: =E11*G11 -> 50 | K11: =G11*F11 -> 76000 | L11: =E11*G11*Pct_Usable_Storage -> 37.5 | M11: 3268.3 | P11: 1.173040645 | Q11: TRUE | R11: 1 | S11: 3268.3 | T11: =R11*E11 -> 50
A12: 115.2460984 | B12: A.O.Smith | C12: BTX-100 | D12: 0.96 | E12: 50 | F12: 100000 | G12: 1 | H12: 115.2460984 | I12: =(G12*F12*D12)/(DensityWater*T_rise_F) -> 115.2460984 | J12: =E12*G12 -> 50 | K12: =G12*F12 -> 100000 | L12: =E12*G12*Pct_Usable_Storage -> 37.5 | M12: 4875 | P12: 1.646372835 | Q12: FALSE | R12: 0 | S12: 0 | T12: 0
A13: 138.2953181 | B13: A.O.Smith | C13: BTH-120 | D13: 0.96 | E13: 100 | F13: 120000 | G13: 1 | H13: 138.2953181 | I13: =(G13*F13*D13)/(DensityWater*T_rise_F) -> 138.2953181 | J13: =E13*G13 -> 100 | K13: =G13*F13 -> 120000 | L13: =E13*G13*Pct_Usable_Storage -> 75 | M13: 7150.5 | P13: 1.975647402 | Q13: FALSE | R13: 0 | S13: 0 | T13: 0
A14: 172.8691477 | B14: A.O.Smith | C14: BTH-150 | D14: 0.96 | E14: 100 | F14: 150000 | G14: 1 | H14: 172.8691477 | I14: =(G14*F14*D14)/(DensityWater*T_rise_F) -> 172.8691477 | J14: =E14*G14 -> 100 | K14: =G14*F14 -> 150000 | L14: =E14*G14*Pct_Usable_Storage -> 75 | M14: 9531.48 | P14: 2.469559252 | Q14: FALSE | R14: 0 | S14: 0 | T14: 0
A15: 229.3397359 | B15: A.O.Smith | C15: BTH-199 | D15: 0.96 | E15: 100 | F15: 199000 | G15: 1 | H15: 229.3397359 | I15: =(G15*F15*D15)/(DensityWater*T_rise_F) -> 229.3397359 | J15: 100 | K15: 199000 | L15: =E15*G15*Pct_Usable_Storage -> 75 | M15: 9763.74 | P15: 3.276281941 | Q15: FALSE | R15: 0 | S15: 0 | T15: 0
A16: 288.1152461 | B16: A.O.Smith | C16: BTH-250 | D16: 0.96 | E16: 100 | F16: 250000 | G16: 1 | H16: 288.1152461 | I16: 288.1152461 | J16: 100 | K16: 250000 | L16: 75 | M16: 11048.52 | P16: 4.115932087 | Q16: FALSE | R16: 0 | S16: 0 | T16: 0
A17: 345.7382953 | B17: A.O.Smith | C17: BTH-300 | D17: 0.96 | E17: 100 | F17: 300000 | G17: 1 | H17: 345.7382953 | I17: 345.7382953 | J17: 100 | K17: 300000 | L17: 75 | M17: 11048.52 | P17: 4.939118505 | Q17: FALSE | R17: 0 | S17: 0 | T17: 0
A18: 460.8691477 | B18: A.O.Smith | C18: BTH-400A | D18: 0.96 | E18: 130 | F18: 399900 | G18: 1 | H18: 460.8691477 | I18: 460.8691477 | J18: 130 | K18: 399900 | L18: 97.5 | M18: 16563.96 | P18: 6.583844967 | Q18: FALSE | R18: 0 | S18: 0 | T18: 0
A19: 570.1140456 | B19: A.O.Smith | C19: BTH-500A | D19: 0.95 | E19: 130 | F19: 499900 | G19: 1 | H19: 570.1140456 | I19: 570.1140456 | J19: 130 | K19: 499900 | L19: 97.5 | M19: 19446.63 | P19: 8.144486366 | Q19: FALSE | R19: 0 | S19: 0 | T19: 0
A20: 921.7382953 | B20: A.O.Smith | C20: BTH-400A | D20: 0.96 | E20: 130 | F20: 399900 | G20: 2 | H20: 921.7382953 | I20: 921.7382953 | J20: 260 | K20: 799800 | L20: 195 | M20: 16563.96 | P20: 13.16768993 | Q20: FALSE | R20: 0 | S20: 0 | T20: 0
A21: 1382.607443 | B21: A.O.Smith | C21: BTH-400A | D21: 0.96 | E21: 130 | F21: 399900 | G21: 3 | H21: 1382.607443 | I21: 1382.607443 | J21: 390 | K21: 1199700 | L21: 292.5 | M21: 16563.96 | P21: 19.7515349 | Q21: FALSE | R21: 0 | S21: 0 | T21: 0
A22: 1843.476591 | B22: A.O.Smith | C22: BTH-400A | D22: 0.96 | E22: 130 | F22: 399900 | G22: 4 | H22: 1843.476591 | I22: 1843.476591 | J22: 520 | K22: 1599600 | L22: 390 | M22: 16563.96 | P22: 26.33537987 | Q22: FALSE | R22: 0 | S22: 0 | T22: 0
A23: 2304.345738 | B23: A.O.Smith | C23: BTH-400A | D23: 0.96 | E23: 130 | F23: 399900 | G23: 5 | H23: 2304.345738 | I23: 2304.345738 | J23: 650 | K23: 1999500 | L23: 487.5 | M23: 16563.96 | P23: 32.91922483 | Q23: FALSE | R23: 0 | S23: 0 | T23: 0
A24: 2765.214886 | B24: A.O.Smith | C24: BTH-400A | D24: 0.96 | E24: 130 | F24: 399900 | G24: 6 | H24: 2765.214886 | I24: 2765.214886 | J24: 780 | K24: 2399400 | L24: 585 | M24: 16563.96 | P24: 39.5030698 | Q24: FALSE | R24: 0 | S24: 0 | T24: 0
A25: 3226.084034 | B25: A.O.Smith | C25: BTH-400A | D25: 0.96 | E25: 130 | F25: 399900 | G25: 7 | H25: 3226.084034 | I25: 3226.084034 | J25: 910 | K25: 2799300 | L25: 682.5 | M25: 16563.96 | P25: 46.08691477 | Q25: FALSE | R25: 0 | S25: 0 | T25: 0
A26: 3686.953181 | B26: A.O.Smith | C26: BTH-400A | D26: 0.96 | E26: 130 | F26: 399900 | G26: 8 | H26: 3686.953181 | I26: 3686.953181 | J26: 1040 | K26: 3199200 | L26: 780 | M26: 16563.96 | P26: 52.67075973 | Q26: =IF(P26>=1,P25<1) -> FALSE | R26: =$G26*Q26 -> 0 | S26: =R26*M26 -> 0 | T26: 0
A27: 9999 | B27: End of data
A31: NATURAL GAS STANDARD WATER HEATER | P31: Logic for Equipment Cost Determination
A32: Recovery GPH | B32: Manufacturer | C32: Heater Model | D32: Thermal Efficiency | E32: Tank Size Gallons | F32: Btu/hr Input Each | G32: Number of Units | H32: GPH @100F Rise | I32: ="GPH @"&T_rise_F&"F rise" -> GPH @100F rise | J32: Total Tank Gallons | K32: Total Btu/hr Input | L32: Total Usable Storage Gallons | M32: Budget Price Each | N32: Total Budget Price | P32: Demand Ratio | Q32: Field3 | R32: =G32 -> Number of Units | S32: Total Installed Cost | T32: Total Heater Storage Gallons
A33: =H33 -> 23.40936375 | B33: A.O.Smith | C33: GCV-40 | D33: 0.78 | E33: 40 | F33: =50000/2 -> 25000 | G33: 1 | H33: =(G33*F33*D33)/(DensityWater*100) -> 23.40936375 | I33: =(G33*F33*D33)/(DensityWater*T_rise_F) -> 23.40936375 | J33: =E33*G33 -> 40 | K33: =G33*F33 -> 25000 | L33: =E33*G33*Pct_Usable_Storage -> 30 | M33: 1095 | P33: =A33/Demand -> 0.3344194821 | Q33: =IF(P33>=1,P32<1) -> FALSE | R33: =$G33*Q33 -> 0 | S33: =R33*M33 -> 0 | T33: =R33*E33 -> 0
A34: =H34 -> 46.81872749 | B34: A.O.Smith | C34: GCV-40 | D34: 0.78 | E34: 40 | F34: 50000 | G34: 1 | H34: =(G34*F34*D34)/(DensityWater*100) -> 46.81872749 | I34: =(G34*F34*D34)/(DensityWater*T_rise_F) -> 46.81872749 | J34: =E34*G34 -> 40 | K34: =G34*F34 -> 50000 | L34: =E34*G34*Pct_Usable_Storage -> 30 | M34: 1095 | P34: 0.6688389642 | Q34: FALSE | R34: 0 | S34: 0 | T34: =R34*E34 -> 0
A35: =I35 -> 46.81872749 | B35: A.O.Smith | C35: GCV-50 | D35: 0.78 | E35: 48 | F35: 50000 | G35: 1 | H35: =(G35*F35*D35)/(DensityWater*100) -> 46.81872749 | I35: 46.81872749 | J35: 48 | K35: 50000 | L35: 36 | M35: 1167 | P35: 0.6688389642 | Q35: FALSE | R35: 0 | S35: 0 | T35: 0
A36: 115.2460984 | B36: A.O.Smith | C36: BTR-120 | D36: 0.8 | E36: 71 | F36: 120000 | G36: 1 | H36: 116 | I36: =(G36*F36*D36)/(DensityWater*T_rise_F) -> 115.2460984 | J36: =E36*G36 -> 71 | K36: =G36*F36 -> 120000 | L36: =E36*G36*Pct_Usable_Storage -> 53.25 | M36: 6187.23 | P36: 1.646372835 | Q36: TRUE | R36: 1 | S36: 6187.23 | T36: 71
A37: 147.8991597 | B37: A.O.Smith | C37: BTR-154 | D37: 0.8 | E37: 81 | F37: 154000 | G37: 1 | H37: 149 | I37: 147.8991597 | J37: 81 | K37: 154000 | L37: 60.75 | M37: 7861.56 | P37: 2.112845138 | Q37: FALSE | R37: 0 | S37: 0 | T37: 0
A38: 191.1164466 | B38: A.O.Smith | C38: BTR-199 | D38: 0.8 | E38: 100 | F38: 199000 | G38: 1 | H38: 193 | I38: 191.1164466 | J38: 100 | K38: 199000 | L38: 75 | M38: 8334.9 | P38: 2.730234951 | Q38: FALSE | R38: 0 | S38: 0 | T38: 0
A39: 240.0960384 | B39: A.O.Smith | C39: BTR-250 | D39: 0.8 | E39: 100 | F39: 250000 | G39: 1 | H39: 242 | I39: 240.0960384 | J39: 100 | K39: 250000 | L39: 75 | M39: 9247.77 | P39: 3.429943406 | Q39: FALSE | R39: 0 | S39: 0 | T39: 0
A40: 384.057623 | B40: A.O.Smith | C40: BTR-305 | D40: 0.8 | E40: 65 | F40: 399900 | G40: 1 | H40: 296 | I40: 384.057623 | J40: 65 | K40: 399900 | L40: 48.75 | M40: 9716.7 | P40: 5.486537472 | Q40: FALSE | R40: 0 | S40: 0 | T40: 0
A41: =I41 -> 374.5498199 | B41: A.O.Smith | C41: BTR-400 | D41: 0.8 | E41: 100 | F41: 390000 | G41: 1 | H41: 378 | I41: 374.5498199 | J41: 100 | K41: 390000 | L41: 75 | M41: 13623.96 | P41: 5.350711713 | Q41: FALSE | R41: 0 | S41: 0 | T41: 0
A42: =I42 -> 480.1920768 | B42: A.O.Smith | C42: BTR-500 | D42: 0.8 | E42: 85 | F42: 500000 | G42: 1 | H42: 485 | I42: 480.1920768 | J42: 85 | K42: 500000 | L42: 63.75 | M42: 15348.27 | P42: 6.859886812 | Q42: FALSE | R42: 0 | S42: 0 | T42: 0
A43: 749.0996399 | B43: A.O.Smith | C43: BTR-400 | D43: =D41 -> 0.8 | E43: =$E$41 -> 100 | F43: =$F$41 -> 390000 | G43: 2 | H43: =G43*$H$41 -> 756 | I43: 749.0996399 | J43: 200 | K43: 780000 | L43: 150 | M43: =$M$41 -> 13623.96 | P43: 10.70142343 | Q43: FALSE | R43: 0 | S43: 0 | T43: 0
A44: 1123.64946 | B44: A.O.Smith | C44: BTR-400 | D44: =D42 -> 0.8 | E44: =$E$41 -> 100 | F44: =$F$41 -> 390000 | G44: 3 | H44: =G44*$H$41 -> 1134 | I44: 1123.64946 | J44: 300 | K44: 1170000 | L44: 225 | M44: =$M$41 -> 13623.96 | P44: 16.05213514 | Q44: FALSE | R44: 0 | S44: 0 | T44: 0
A45: 1498.19928 | B45: A.O.Smith | C45: BTR-400 | D45: 0.8 | E45: 100 | F45: 390000 | G45: 4 | H45: 1512 | I45: 1498.19928 | J45: 400 | K45: 1560000 | L45: 300 | M45: 13623.96 | P45: 21.40284685 | Q45: FALSE | R45: 0 | S45: 0 | T45: 0
A46: 1872.7491 | B46: A.O.Smith | C46: BTR-400 | D46: 0.8 | E46: 100 | F46: 390000 | G46: 5 | H46: 1890 | I46: 1872.7491 | J46: 500 | K46: 1950000 | L46: 375 | M46: 13623.96 | P46: 26.75355857 | Q46: FALSE | R46: 0 | S46: 0 | T46: 0
A47: 2247.29892 | B47: A.O.Smith | C47: BTR-400 | D47: 0.8 | E47: 100 | F47: 390000 | G47: 6 | H47: 2268 | I47: 2247.29892 | J47: 600 | K47: 2340000 | L47: 450 | M47: 13623.96 | P47: 32.10427028 | Q47: FALSE | R47: 0 | S47: 0 | T47: 0
A48: 2621.848739 | B48: A.O.Smith | C48: BTR-400 | D48: 0.8 | E48: 100 | F48: 390000 | G48: 7 | H48: 2646 | I48: 2621.848739 | J48: 700 | K48: 2730000 | L48: 525 | M48: 13623.96 | P48: 37.45498199 | Q48: FALSE | R48: 0 | S48: 0 | T48: 0
A49: 2996.398559 | B49: A.O.Smith | C49: BTR-400 | D49: 0.8 | E49: 100 | F49: 390000 | G49: 8 | H49: 3024 | I49: 2996.398559 | J49: 800 | K49: 3120000 | L49: 600 | M49: 13623.96 | P49: 42.80569371 | Q49: FALSE | R49: =$G49*Q49 -> 0 | S49: =R49*M49 -> 0 | T49: 0
A50: 9999 | B50: End of data
A54: ELECTRIC WATER HEATER | P54: Logic for Equipment Cost Determination
A55: Recovery GPH | B55: Manufacturer | C55: kW | D55: Thermal Efficiency | E55: Tank Size Gallons | F55: Btu/hr Input Each | G55: Number of Units | H55: GPH @100F Rise | I55: ="GPH @"&T_rise_F&"F rise" -> GPH @100F rise | J55: Total Tank Gallons | K55: Total Btu/hr Input | L55: Total Usable Storage Gallons | M55: Budget Price Each | N55: Total Budget Price | P55: Demand Ratio | Q55: Field3 | R55: =G55 -> Number of Units | S55: Total Installed Cost | T55: Total Heater Storage Gallons
A56: =I56 -> 18.24785114 | B56: A. O. Smith | C56: 12 | D56: 0.99 | E56: 40 | F56: =4500*BTUperkWh/1000 -> 15354 | G56: 1 | H56: =(G56*F56*D56)/(DensityWater*100) -> 18.24785114 | I56: =(G56*F56*D56)/(DensityWater*T_rise_F) -> 18.24785114 | J56: =E56*G56 -> 40 | K56: =G56*F56 -> 15354 | L56: =E56*G56*Pct_Usable_Storage -> 30 | M56: 2214 | P56: =A56/Demand -> 0.2606835877 | Q56: =IF(P56>=1,#REF!<1) -> FALSE | R56: =$G56*Q56 -> 0 | S56: =R56*M56 -> 0 | T56: =R56*E56 -> 0
A57: 18.24785114 | B57: A. O. Smith | C57: 12 | D57: 0.99 | E57: 50 | F57: =4500*BTUperkWh/1000 -> 15354 | G57: 1 | H57: 18.24785114 | I57: 18.24785114 | J57: 50 | K57: 15354 | L57: 37.5 | M57: 2476.5 | P57: 0.2606835877 | Q57: =IF(P57>=1,P56<1) -> FALSE | R57: 0 | S57: 0 | T57: 0
A58: 18.24785114 | B58: A. O. Smith | C58: 12 | D58: 0.99 | E58: 66 | F58: =4500*BTUperkWh/1000 -> 15354 | G58: 1 | H58: 18.24785114 | I58: 18.24785114 | J58: 66 | K58: 15354 | L58: 49.5 | M58: 2815.5 | P58: 0.2606835877 | Q58: FALSE | R58: 0 | S58: 0 | T58: 0
A59: 18.24785114 | B59: A. O. Smith | C59: 12 | D59: 0.99 | E59: 80 | F59: =4500*BTUperkWh/1000 -> 15354 | G59: 1 | H59: 18.24785114 | I59: 18.24785114 | J59: 80 | K59: 15354 | L59: 60 | M59: 3129 | P59: 0.2606835877 | Q59: FALSE | R59: 0 | S59: 0 | T59: 0
A60: =I60 -> 36.49570228 | B60: Lochinvar | C60: 9 | D60: 0.99 | E60: 119 | F60: =C60*BTUperkWh -> 30708 | G60: 1 | H60: =(F60*D60)/(100*DensityWater) -> 36.49570228 | I60: =(G60*F60*D60)/(DensityWater*T_rise_F) -> 36.49570228 | J60: =E60*G60 -> 119 | K60: =G60*F60 -> 30708 | L60: =E60*G60*Pct_Usable_Storage -> 89.25 | M60: 7973 | P60: 0.5213671754 | Q60: FALSE | R60: 0 | S60: 0 | T60: 0
A61: 48.66093637 | B61: Lochinvar | C61: 12 | D61: 0.99 | E61: 119 | F61: 40944 | G61: 1 | H61: 48.66093637 | I61: 48.66093637 | J61: 119 | K61: 40944 | L61: 89.25 | M61: 8301 | P61: 0.6951562339 | Q61: FALSE | R61: 0 | S61: 0 | T61: 0
A62: 60.82617047 | B62: Lochinvar | C62: 15 | D62: 0.99 | E62: 119 | F62: 51180 | G62: 1 | H62: 60.82617047 | I62: 60.82617047 | J62: 119 | K62: 51180 | L62: 89.25 | M62: 8679 | P62: 0.8689452924 | Q62: FALSE | R62: 0 | S62: 0 | T62: 0
A63: 72.99140456 | B63: Lochinvar | C63: 18 | D63: 0.99 | E63: 119 | F63: 61416 | G63: 1 | H63: 72.99140456 | I63: 72.99140456 | J63: 119 | K63: 61416 | L63: 89.25 | M63: 8829 | P63: 1.042734351 | Q63: TRUE | R63: 1 | S63: 8829 | T63: 119
A64: 97.32187275 | B64: Lochinvar | C64: 24 | D64: 0.99 | E64: 119 | F64: 81888 | G64: 1 | H64: 97.32187275 | I64: 97.32187275 | J64: 119 | K64: 81888 | L64: 89.25 | M64: 9816 | P64: 1.390312468 | Q64: FALSE | R64: 0 | S64: 0 | T64: 0
A65: 109.4871068 | B65: Lochinvar | C65: 27 | D65: 0.99 | E65: 119 | F65: 92124 | G65: 1 | H65: 109.4871068 | I65: 109.4871068 | J65: 119 | K65: 92124 | L65: 89.25 | M65: 10203 | P65: 1.564101526 | Q65: FALSE | R65: 0 | S65: 0 | T65: 0
A66: 121.6523409 | B66: Lochinvar | C66: 30 | D66: 0.99 | E66: 119 | F66: 102360 | G66: 1 | H66: 121.6523409 | I66: 121.6523409 | J66: 119 | K66: 102360 | L66: 89.25 | M66: 10437 | P66: 1.737890585 | Q66: FALSE | R66: 0 | S66: 0 | T66: 0
A67: 145.9828091 | B67: Lochinvar | C67: 36 | D67: 0.99 | E67: 119 | F67: 122832 | G67: 1 | H67: 145.9828091 | I67: 145.9828091 | J67: 119 | K67: 122832 | L67: 89.25 | M67: 10628 | P67: 2.085468702 | Q67: FALSE | R67: 0 | S67: 0 | T67: 0
A68: 182.4785114 | B68: Lochinvar | C68: 45 | D68: 0.99 | E68: 119 | F68: 153540 | G68: 1 | H68: 182.4785114 | I68: 182.4785114 | J68: 119 | K68: 153540 | L68: 89.25 | M68: 12762 | P68: 2.606835877 | Q68: FALSE | R68: 0 | S68: 0 | T68: 0
A69: 218.9742137 | B69: Lochinvar | C69: 54 | D69: 0.99 | E69: 119 | F69: 184248 | G69: 1 | H69: 218.9742137 | I69: 218.9742137 | J69: 119 | K69: 184248 | L69: 89.25 | M69: 13103 | P69: 3.128203053 | Q69: FALSE | R69: 0 | S69: 0 | T69: 0
A70: 437.9484274 | B70: Lochinvar | C70: =C69 -> 54 | D70: =D69 -> 0.99 | E70: =E69 -> 119 | F70: 184248 | G70: 2 | H70: =$H$69*G70 -> 437.9484274 | I70: 437.9484274 | J70: 238 | K70: 368496 | L70: 178.5 | M70: =M69 -> 13103 | P70: 6.256406105 | Q70: FALSE | R70: 0 | S70: 0 | T70: 0
A71: 656.9226411 | B71: Lochinvar | C71: =C70 -> 54 | D71: =D70 -> 0.99 | E71: =E70 -> 119 | F71: 184248 | G71: 3 | H71: =$H$69*G71 -> 656.9226411 | I71: 656.9226411 | J71: 357 | K71: 552744 | L71: 267.75 | M71: =M70 -> 13103 | P71: 9.384609158 | Q71: FALSE | R71: 0 | S71: 0 | T71: 0
A72: 875.8968547 | B72: Lochinvar | C72: 54 | D72: 0.99 | E72: 119 | F72: 184248 | G72: 4 | H72: 875.8968547 | I72: 875.8968547 | J72: 476 | K72: 736992 | L72: 357 | M72: 13103 | P72: 12.51281221 | Q72: FALSE | R72: 0 | S72: 0 | T72: 0
A73: 1094.871068 | B73: Lochinvar | C73: 54 | D73: 0.99 | E73: 119 | F73: 184248 | G73: 5 | H73: 1094.871068 | I73: 1094.871068 | J73: 595 | K73: 921240 | L73: 446.25 | M73: 13103 | P73: 15.64101526 | Q73: FALSE | R73: 0 | S73: 0 | T73: 0
A74: 1313.845282 | B74: Lochinvar | C74: 54 | D74: 0.99 | E74: 119 | F74: 184248 | G74: 6 | H74: 1313.845282 | I74: 1313.845282 | J74: 714 | K74: 1105488 | L74: 535.5 | M74: 13103 | P74: 18.76921832 | Q74: FALSE | R74: 0 | S74: 0 | T74: 0
A75: 1532.819496 | B75: Lochinvar | C75: 54 | D75: 0.99 | E75: 119 | F75: 184248 | G75: 7 | H75: 1532.819496 | I75: 1532.819496 | J75: 833 | K75: 1289736 | L75: 624.75 | M75: 13103 | P75: 21.89742137 | Q75: FALSE | R75: 0 | S75: 0 | T75: 0
A76: 1751.793709 | B76: Lochinvar | C76: 54 | D76: 0.99 | E76: 119 | F76: 184248 | G76: 8 | H76: 1751.793709 | I76: 1751.793709 | J76: 952 | K76: 1473984 | L76: 714 | M76: 13103 | P76: 25.02562442 | Q76: FALSE | R76: 0 | S76: 0 | T76: 0
A77: 1970.767923 | B77: Lochinvar | C77: 54 | D77: 0.99 | E77: 119 | F77: 184248 | G77: 9 | H77: 1970.767923 | I77: 1970.767923 | J77: 1071 | K77: 1658232 | L77: 803.25 | M77: 13103 | P77: 28.15382747 | Q77: FALSE | R77: 0 | S77: 0 | T77: 0
A78: 2189.742137 | B78: Lochinvar | C78: 54 | D78: 0.99 | E78: 119 | F78: 184248 | G78: 10 | H78: 2189.742137 | I78: 2189.742137 | J78: 1190 | K78: 1842480 | L78: 892.5 | M78: 13103 | P78: 31.28203053 | Q78: =IF(P78>=1,P77<1) -> FALSE | R78: =$G78*Q78 -> 0 | S78: =R78*M78 -> 0 | T78: 0
A79: 9999
A84: ELECTRIC TANKLESS WATER HEATER | P84: Logic for Equipment Cost Determination
A85: Recovery GPH | B85: Product Line | C85: kW | E85: Gallon Capacity | F85: Btu/hr Input | G85: Number of Units | H85: GPH @100F Rise | I85: ="GPH @"&T_rise_F&"F rise" -> GPH @100F rise | J85: Total Tank Gallons | K85: Total Btu/hr Input | L85: Total Usable Storage Gallons | M85: Budget Price Each | N85: Larger Service | O85: Not Used | P85: Demand Ratio | Q85: Field3 | R85: =G85 -> Number of Units | S85: Total Installed Cost | T85: Total Heater Storage Gallons
A86: =I86 -> 58.94837935 | B86: Steibel Tempra 20 Plus | C86: =K86/BTUperkWh -> 14.3915592 | D86: 1 | E86: 0 | F86: 49104 | G86: 1 | H86: =(G86*F86*D86)/(DensityWater*100) -> 58.94837935 | I86: =(G86*F86*D86)/(DensityWater*T_rise_F) -> 58.94837935 | J86: =E86*G86 -> 0 | K86: =G86*F86 -> 49104 | L86: =E86*G86*Pct_Usable_Storage -> 0 | M86: 729 | N86: 0 | P86: =A86/Demand -> 0.842119705 | Q86: =IF(P86>=1,P85<1) -> FALSE | R86: =$G86*Q86 -> 0 | S86: =R86*M86 -> 0 | T86: =R86*E86 -> 0
A87: 78.59783914 | B87: Steibel Tempra 20 Plus | C87: 19.1887456 | D87: 1 | E87: 0 | F87: 65472 | G87: 1 | H87: 78.59783914 | I87: 78.59783914 | J87: 0 | K87: 65472 | L87: 0 | M87: 729 | P87: 1.122826273 | Q87: TRUE | R87: 1 | S87: 729 | T87: 0
A88: 98.24729892 | B88: Steibel Tempra 26 Plus | C88: 23.985932 | D88: 1 | E88: 0 | F88: 81840 | G88: 1 | H88: 98.24729892 | I88: 98.24729892 | J88: 0 | K88: 81840 | L88: 0 | M88: 765 | P88: 1.403532842 | Q88: FALSE | R88: 0 | S88: 0 | T88: 0
A89: 117.8967587 | B89: Steibel Tempra 29 Plus | C89: 28.78311841 | D89: 1 | E89: 0 | F89: 98208 | G89: 1 | H89: 117.8967587 | I89: 117.8967587 | J89: 0 | K89: 98208 | L89: 0 | M89: 799 | P89: 1.68423941 | Q89: FALSE | R89: 0 | S89: 0 | T89: 0
A90: =I90 -> 150 | B90: Stiebel Eltron Tempra 36 Plus (Electric Tankless) | C90: 36.62075029 | D90: 1 | E90: 0 | F90: 124950 | G90: 1 | H90: =(F90*D90)/(100*DensityWater) -> 150 | I90: =(G90*F90*D90)/(DensityWater*T_rise_F) -> 150 | J90: =E90*G90 -> 0 | K90: =G90*F90 -> 124950 | L90: =E90*G90*Pct_Usable_Storage -> 0 | M90: 839 | P90: 2.142857143 | Q90: FALSE | R90: 0 | S90: 0 | T90: 0
A91: =I91 -> 300 | C91: 73.24150059 | D91: 1 | E91: 0 | F91: =$F$90 -> 124950 | G91: 2 | H91: =$H$90*G91 -> 300 | I91: 300 | J91: 0 | K91: 249900 | L91: 0 | M91: 839 | P91: 4.285714286 | Q91: FALSE | R91: 0 | S91: 0 | T91: 0
A92: 450 | C92: 109.8622509 | D92: 1 | E92: 0 | F92: =$F$90 -> 124950 | G92: 3 | H92: =$H$90*G92 -> 450 | I92: 450 | J92: 0 | K92: 374850 | L92: 0 | M92: 839 | P92: 6.428571429 | Q92: FALSE | R92: 0 | S92: 0 | T92: 0
A93: 600 | C93: 146.4830012 | D93: 1 | E93: 0 | F93: 124950 | G93: 4 | H93: 600 | I93: 600 | J93: 0 | K93: 499800 | L93: 0 | M93: 839 | P93: 8.571428571 | Q93: FALSE | R93: 0 | S93: 0 | T93: 0
A94: 750 | C94: 183.1037515 | D94: 1 | E94: 0 | F94: 124950 | G94: 5 | H94: 750 | I94: 750 | J94: 0 | K94: 624750 | L94: 0 | M94: 839 | P94: 10.71428571 | Q94: FALSE | R94: 0 | S94: 0 | T94: 0
A95: 900 | C95: 219.7245018 | D95: 1 | E95: 0 | F95: 124950 | G95: 6 | H95: 900 | I95: 900 | J95: 0 | K95: 749700 | L95: 0 | M95: 839 | P95: 12.85714286 | Q95: FALSE | R95: 0 | S95: 0 | T95: 0
A96: 1050 | C96: 256.3452521 | D96: 1 | E96: 0 | F96: 124950 | G96: 7 | H96: 1050 | I96: 1050 | J96: 0 | K96: 874650 | L96: 0 | M96: 839 | P96: 15 | Q96: FALSE | R96: 0 | S96: 0 | T96: 0
A97: 1200 | C97: 292.9660023 | D97: 1 | E97: 0 | F97: 124950 | G97: 8 | H97: 1200 | I97: 1200 | J97: 0 | K97: 999600 | L97: 0 | M97: 839 | P97: 17.14285714 | Q97: FALSE | R97: 0 | S97: 0 | T97: 0
A98: 1350 | C98: 329.5867526 | D98: 1 | E98: 0 | F98: 124950 | G98: 9 | H98: 1350 | I98: 1350 | J98: 0 | K98: 1124550 | L98: 0 | M98: 839 | P98: 19.28571429 | Q98: FALSE | R98: 0 | S98: 0 | T98: 0
A99: 1500 | C99: 366.2075029 | D99: 1 | E99: 0 | F99: 124950 | G99: 10 | H99: 1500 | I99: 1500 | J99: 0 | K99: 1249500 | L99: 0 | M99: 839 | P99: 21.42857143 | Q99: =IF(P99>=1,P98<1) -> FALSE | R99: =$G99*Q99 -> 0 | S99: =R99*M99 -> 0 | T99: 0
A100: 9999
A105: NATURAL GAS TANKLESS WATER HEATER | P105: Logic for Equipment Cost Determination
A106: Recovery GPH | B106: Product Line | C106: Heater Model | E106: Gallon Capacity | F106: Btu/hr Input | G106: Number of Units | H106: GPH @100F Rise | I106: ="GPH @"&T_rise_F&"F rise" -> GPH @100F rise | J106: Total Tank Gallons | K106: Total Btu/hr Input | L106: Total Usable Storage Gallons | M106: Budget Price Each | N106: Not Used | O106: Not Used | P106: Demand Ratio | Q106: Field3 | R106: =G106 -> Number of Units | S106: Total Installed Cost | T106: Total Heater Storage Gallons
A107: =I107 -> 19.19567827 | B107: A. O. Smith | C107: ATO-110-N | D107: 0.82 | E107: 0 | F107: 19500 | G107: 1 | H107: =(F107*D107)/(100*DensityWater) -> 19.19567827 | I107: =(G107*F107*D107)/(DensityWater*T_rise_F) -> 19.19567827 | J107: =E107*G107 -> 0 | K107: =G107*F107 -> 19500 | L107: =E107*G107*Pct_Usable_Storage -> 0 | M107: 637.75 | P107: =A107/Demand -> 0.2742239753 | Q107: =IF(P107>=1,P106<1) -> FALSE | R107: =$G107*Q107 -> 0 | S107: =R107*M107 -> 0 | T107: =R107*E107 -> 0
A108: =I108 -> 137.8151261 | C108: ATO-110-N | D108: 0.82 | E108: 0 | F108: 140000 | G108: 1 | H108: =(F108*D108)/(100*DensityWater) -> 137.8151261 | I108: =(G108*F108*D108)/(DensityWater*T_rise_F) -> 137.8151261 | J108: =E108*G108 -> 0 | K108: =G108*F108 -> 140000 | L108: =E108*G108*Pct_Usable_Storage -> 0 | M108: 637.75 | P108: 1.968787515 | Q108: TRUE | R108: 1 | S108: 637.75 | T108: 0
A109: =I109 -> 222.1728691 | B109: Noritz Natural Gas Tankless Heaters | D109: 0.93 | E109: 0 | F109: 199000 | G109: 1 | H109: =(F109*D109)/(100*DensityWater) -> 222.1728691 | I109: 222.1728691 | J109: =E109*G109 -> 0 | K109: =G109*F109 -> 199000 | L109: 0 | M109: 2400 | P109: 3.173898131 | Q109: FALSE | R109: 0 | S109: 0 | T109: 0
A110: =I110 -> 444.3457383 | D110: 0.93 | E110: 0 | F110: 199000 | G110: 2 | H110: =$H$109*G110 -> 444.3457383 | I110: 444.3457383 | J110: =E110*G110 -> 0 | K110: =G110*F110 -> 398000 | L110: 0 | M110: 2400 | P110: 6.347796261 | Q110: FALSE | R110: 0 | S110: 0 | T110: 0
A111: 666.5186074 | D111: 0.93 | E111: 0 | F111: 199000 | G111: 3 | H111: =$H$109*G111 -> 666.5186074 | I111: 666.5186074 | J111: 0 | K111: 597000 | L111: 0 | M111: 2400 | P111: 9.521694392 | Q111: FALSE | R111: 0 | S111: 0 | T111: 0
A112: 888.6914766 | D112: 0.93 | E112: 0 | F112: 199000 | G112: 4 | H112: 888.6914766 | I112: 888.6914766 | J112: 0 | K112: 796000 | L112: 0 | M112: 2400 | P112: 12.69559252 | Q112: FALSE | R112: 0 | S112: 0 | T112: 0
A113: 1110.864346 | D113: 0.93 | E113: 0 | F113: 199000 | G113: 5 | H113: 1110.864346 | I113: 1110.864346 | J113: 0 | K113: 995000 | L113: 0 | M113: 2400 | P113: 15.86949065 | Q113: FALSE | R113: 0 | S113: 0 | T113: 0
A114: 1333.037215 | D114: 0.93 | E114: 0 | F114: 199000 | G114: 6 | H114: 1333.037215 | I114: 1333.037215 | J114: 0 | K114: 1194000 | L114: 0 | M114: 2400 | P114: 19.04338878 | Q114: FALSE | R114: 0 | S114: 0 | T114: 0
A115: 1555.210084 | D115: 0.93 | E115: 0 | F115: 199000 | G115: 7 | H115: 1555.210084 | I115: 1555.210084 | J115: 0 | K115: 1393000 | L115: 0 | M115: 2400 | P115: 22.21728691 | Q115: FALSE | R115: 0 | S115: 0 | T115: 0
A116: 1777.382953 | D116: 0.93 | E116: 0 | F116: 199000 | G116: 8 | H116: 1777.382953 | I116: 1777.382953 | J116: 0 | K116: 1592000 | L116: 0 | M116: 2400 | P116: 25.39118505 | Q116: FALSE | R116: 0 | S116: 0 | T116: 0
A117: 1999.555822 | D117: 0.93 | E117: 0 | F117: 199000 | G117: 9 | H117: 1999.555822 | I117: 1999.555822 | J117: 0 | K117: 1791000 | L117: 0 | M117: 2400 | P117: 28.56508318 | Q117: FALSE | R117: 0 | S117: 0 | T117: 0
A118: 2221.728691 | D118: 0.93 | E118: 0 | F118: 199000 | G118: 10 | H118: 2221.728691 | I118: 2221.728691 | J118: 0 | K118: 1990000 | L118: 0 | M118: 2400 | P118: 31.73898131 | Q118: =IF(P118>=1,P117<1) -> FALSE | R118: =$G118*Q118 -> 0 | S118: =R118*M118 -> 0 | T118: 0
A119: 9999
A124: STEAM HEATER + EXTERNAL STORAGE
A125: Gallon Capacity | B125: Glass Lined 125 psi Tank
A126: 200 | B126: 9222
A127: 257 | B127: 10564
A128: 318 | B128: 13831
A129: 432 | B129: 15519
A130: 504 | B130: 17053
A131: 650 | B131: 20870
A132: 752 | B132: 22646
A133: 940 | B133: 27083
A136: Description | B136: 6 inch diameter tube bundle - double wall insulated | D136: gph 40-120F water | E136: pph of 5psi steam | F136: Btu/hr to heat water | G136: Btu/hr of 5psi steam @960Btu/lb latent | H136: List Price for Double Wall
A137: 6in diam.tube bundle - 18 in. long | B137: 618 | D137: 342 | E137: 236 | F137: =D137*DensityWater*80 -> 227908.8 | G137: =E137*960 -> 226560 | H137: 6656
B138: 624 | D138: 437 | E138: 302 | F138: 291216.8 | G138: 289920 | H138: 6993
B139: 630 | D139: 538 | E139: 372 | F139: 358523.2 | G139: 357120 | H139: 7333
B140: 636 | D140: 627 | E140: 433 | F140: 417832.8 | G140: 415680 | H140: 7669
B141: 648 | D141: 830 | E141: 573 | F141: 553112 | G141: 550080 | H141: 8315
B142: 660 | D142: 1027 | E142: 709 | F142: 684392.8 | G142: 680640 | H142: 9274

Sheet NPVTable (hidden)
B1: Note: Electricity, natural gas, and steam are assumed to escalate at the same rate
G2: Uniform Present Value (UPV) Factor Energy | H2: Uniform Present Value (UPV) Factor Non Fuel | J2: Discounted UPV Factor Energy | K2: Discounted UPV Factor Non Fuel
A3: Total | B3: =SUM(B8:B48) -> 1 | C3: 14.61779045 | D3: =SUM(D8:D48) -> 14.61779045 | E3: 10.95400399 | F3: 1 | G3: 12 | H3: 12 | J3: =SUM(J8:J48) -> 12 | K3: =SUM(K8:K48) -> 12
A5: Year | B5: Investment | C5: Real | D5: Real | E5: PV | F5: NPV | G5: NPV | H5: NPV | J5: Discounted | K5: Discounted
A6: No. | B6: Cost, $ | C6: Energy Cost | D6: O&M Cost | E6: Factor | F6: Investment | G6: Energy | H6: O&M | J6: Energy Cost | K6: O&M Cost
A7: =LifeYears&" yrs" -> 12 yrs | C7: ="@ "&Real_Energy_Escalation_Rate&"/yr" -> @ 0.03/yr | D7: ="@ "&Real_OM_Escalation_Rate&"/yr" -> @ 0.03/yr | E7: ="@ "&Real_Discount_Rate&"/yr" -> @ 0.03/yr | J7: =Real_Energy_Escalation_Rate*Real_Discount_Rate&"/yr" -> 0.0009/yr | K7: =Real_OM_Escalation_Rate*Real_Discount_Rate&"/yr" -> 0.0009/yr
A8: 0 | B8: 1 | E8: =IF(A8>LifeYears,"",(1+Real_Discount_Rate)^-A8) -> 1 | F8: =IF(A8>LifeYears,"",B8*E8) -> 1 | G8: =IF($A8>LifeYears,"",$E8*C8) -> 0 | H8: =IF($A8>LifeYears,"",$E8*D8) -> 0
A9: =IF(ROW(A8)-ROW($A$8)<LifeYears,A8+1,"") -> 1 | C9: =IF($A9>LifeYears,"",(1+Real_Energy_Escalation_Rate)^$A9) -> 1.03 | D9: =IF($A9>LifeYears,"",(1+Real_OM_Escalation_Rate)^$A9) -> 1.03 | E9: 0.9708737864 | F9: 0 | G9: 1 | H9: 1 | J9: =IF($A9>LifeYears,"",((1+Real_Energy_Escalation_Rate)^$A9)*((1+Real_Discount_Rate)^-A9)) -> 1 | K9: =IF($A9>LifeYears,"",((1+Real_OM_Escalation_Rate)^$A9)*((1+Real_Discount_Rate)^-A9)) -> 1
A10: 2 | C10: 1.0609 | D10: 1.0609 | E10: 0.9425959091 | F10: 0 | G10: 1 | H10: 1 | J10: 1 | K10: 1
A11: 3 | C11: 1.092727 | D11: 1.092727 | E11: 0.9151416594 | F11: 0 | G11: 1 | H11: 1 | J11: 1 | K11: 1
A12: 4 | C12: 1.12550881 | D12: 1.12550881 | E12: 0.8884870479 | F12: 0 | G12: 1 | H12: 1 | J12: 1 | K12: 1
A13: 5 | C13: 1.159274074 | D13: 1.159274074 | E13: 0.8626087844 | F13: 0 | G13: 1 | H13: 1 | J13: 1 | K13: 1
A14: 6 | C14: 1.194052297 | D14: 1.194052297 | E14: 0.8374842567 | F14: 0 | G14: 1 | H14: 1 | J14: 1 | K14: 1
A15: 7 | C15: 1.229873865 | D15: 1.229873865 | E15: 0.8130915113 | F15: 0 | G15: 1 | H15: 1 | J15: 1 | K15: 1
A16: 8 | C16: 1.266770081 | D16: 1.266770081 | E16: 0.7894092343 | F16: 0 | G16: 1 | H16: 1 | J16: 1 | K16: 1
A17: 9 | C17: 1.304773184 | D17: 1.304773184 | E17: 0.7664167323 | F17: 0 | G17: 1 | H17: 1 | J17: 1 | K17: 1
A18: 10 | C18: 1.343916379 | D18: 1.343916379 | E18: 0.7440939149 | F18: 0 | G18: 1 | H18: 1 | J18: 1 | K18: 1
A19: 11 | C19: 1.384233871 | D19: 1.384233871 | E19: 0.7224212766 | F19: 0 | G19: 1 | H19: 1 | J19: 1 | K19: 1
A20: 12 | C20: 1.425760887 | D20: 1.425760887 | E20: 0.7013798802 | F20: 0 | G20: 1 | H20: 1 | J20: 1 | K20: 1

Sheet Figure 1 (hidden)
A16: Groundwater Temperature Impact on Tankless Water Heater Size
A17: http://homerepair.about.com/od/plumbingrepair/ss/tankless_hwh_5.htm
